bitfinex/quotes_SOLUSD_20240716
["timestamp","ask_amount","ask_price","bid_price","bid_amount"]
[1721168262837,6.2328,160.44,160.36,0.34]
[1721168263153,1.25320338,160.43,160.36,0.34]
[1721168263319,1.25320338,160.42,160.36,0.34]
[1721168263719,1.25320338,160.42,160.36,1.58692475]
[1721168264439,1.25320338,160.44,160.36,1.58692475]
[1721168264840,7.48610338,160.44,160.36,0.34]
[1721168265142,6.2333,160.43,160.36,0.34]
[1721168265326,1.25320338,160.42,160.36,0.34]
[1721168265842,7.48680338,160.42,160.36,0.34]
[1721168266050,1.25320338,160.42,160.33,15.5645]
[1721168266223,48.64,160.4,160.31,6.1542]
[1721168266431,6.236,160.36,160.31,6.1542]
[1721168266722,1.25320338,160.35,160.31,6.1542]
[1721168267214,21.25320338,160.39,160.31,6.1542]
[1721168267416,1.25320338,160.39,160.31,6.1542]
[1721168267635,1.25320338,160.39,160.32,0.34]
[1721168268118,29.9,160.43,160.32,0.34]
[1721168268320,7.48680338,160.42,160.32,0.34]
[1721168268519,1.25320338,160.42,160.32,0.34]
[1721168268740,7.48690338,160.42,160.32,0.34]
[1721168268943,6.234,160.41,160.32,0.34]
[1721168269129,1.25320338,160.4,160.32,0.34]
[1721168269329,1.25320338,160.39,160.32,0.34]
[1721168270137,7.48800338,160.39,160.31,6.1542]
[1721168270335,1.25320338,160.38,160.31,6.1542]
[1721168270545,1.25320338,160.38,160.28,15.5634]
[1721168270845,6.2367,160.35,160.28,15.5634]
[1721168271045,1.25320338,160.34,160.28,15.5634]
[1721168271342,1.25320338,160.36,160.28,15.5634]
[1721168271552,1.25320338,160.35,160.28,15.5634]
[1721168272050,7.48960338,160.35,160.29,0.17]
[1721168272349,7.48960338,160.35,160.28,15.5634]
[1721168272754,1.25320338,160.35,160.28,15.5634]
[1721168273441,1.25320338,160.35,160.29,0.17]
[1721168273756,1.25320338,160.35,160.29,0.34]
[1721168274054,7.48960338,160.35,160.29,0.34]
[1721168274249,1.25320338,160.35,160.29,0.34]
[1721168276860,1.25320338,160.35,160.29,0.17]
[1721168277028,1.25320338,160.35,160.28,15.5634]
[1721168277231,7.48980338,160.35,160.28,15.5634]
[1721168277566,36.1369,160.34,160.28,15.5634]
[1721168277856,36.1369,160.34,160.27,12.72623344]
[1721168277857,1.25320338,160.33,160.27,12.72623344]
[1721168278152,36.1369,160.34,160.27,12.72623344]
[1721168278153,1.25320338,160.32,160.27,12.72623344]
[1721168278946,6.2379,160.31,160.24,16.453]
[1721168279158,1.25320338,160.3,160.24,16.453]
[1721168279380,1.25320338,160.29,160.23,6.51978577]
[1721168279532,29.9,160.28,160.23,6.51978577]
[1721168279731,1.25320338,160.27,160.23,6.51978577]
[1721168279935,1.25320338,160.26,160.2,15.3501]
[1721168281058,1.25320338,160.25,160.2,15.3501]
[1721168282332,1.25320338,160.24,160.2,15.3501]
[1721168282526,1.25320338,160.23,160.19,6.86072442]
[1721168282747,1.25320338,160.23,160.19,6.52072442]
[1721168283539,29.9,160.25,160.19,6.52072442]
[1721168283540,1.25320338,160.22,160.19,6.52072442]
[1721168283943,1.25320338,160.24,160.19,6.52072442]
[1721168284232,1.25320338,160.23,160.2,0.17]
[1721168284434,1.25320338,160.23,160.18,0.17]
[1721168284737,1.25320338,160.23,160.18,0.34]
[1721168285135,1.25320338,160.22,160.18,0.34]
[1721168285461,1.25320338,160.24,160.18,0.34]
[1721168285643,1.25320338,160.23,160.18,0.34]
[1721168286762,1.25320338,160.24,160.17,0.34]
[1721168286927,1.25320338,160.24,160.17,1.58459779]
[1721168287134,1.25320338,160.27,160.17,1.58459779]
[1721168287340,1.25320338,160.26,160.17,0.34]
[1721168287537,7.49310338,160.26,160.18,6.50859796]
[1721168287755,7.49310338,160.26,160.19,0.34]
[1721168287966,6.2402,160.25,160.19,0.34]
[1721168288179,1.25320338,160.24,160.19,0.34]
[1721168288452,1.25320338,160.23,160.19,0.34]
[1721168288660,1.25320338,160.27,160.19,0.34]
[1721168288864,6.241,160.23,160.16,6.51484576]
[1721168289028,31.15320338,160.22,160.1,21.4356]
[1721168289233,29.9,160.19,160.1,21.4356]
[1721168289530,1.25320338,160.18,160.12,6.51987562]
[1721168289736,1.25320338,160.17,160.1,21.4356]
[1721168290141,1.25320338,160.17,160.1,15.0938]
[1721168290353,1.25320338,160.17,160.09,6.52256756]
[1721168290554,1.25320338,160.17,160.09,16.52256756]
[1721168290858,1.25320338,160.18,160.1,1.24885773]
[1721168291152,1.25320338,160.23,160.12,10.0]
[1721168291361,1.25320338,160.23,160.1,10.0]
[1721168291562,7.49430338,160.23,160.11,0.34]
[1721168291763,1.25320338,160.23,160.12,10.0]
[1721168292062,1.25320338,160.23,160.13,27.20312129]
[1721168292247,1.25320338,160.23,160.14,6.4049]
[1721168292451,1.25320338,160.22,160.15,0.34]
[1721168293043,1.25320338,160.22,160.15,1.58497182]
[1721168293263,29.9,160.26,160.15,1.58497182]
[1721168293264,1.25320338,160.25,160.15,1.58497182]
[1721168293639,1.25320338,160.25,160.17,10.0]
[1721168293847,1.25320338,160.27,160.18,0.34]
[1721168294043,16.1855,160.28,160.18,0.34]
[1721168294044,1.25320338,160.26,160.18,0.34]
[1721168294268,1.25320338,160.26,160.18,1.58822559]
[1721168294566,1.25320338,160.27,160.2,10.0]
[1721168294744,6.2387,160.29,160.21,0.34]
[1721168294943,1.25320338,160.28,160.22,0.17]
[1721168295144,1.25320338,160.28,160.18,0.34]
[1721168295561,1.25320338,160.28,160.2,10.0]
[1721168295761,21.6677,160.32,160.2,10.0]
[1721168295762,1.25320338,160.31,160.21,1.41805257]
[1721168295945,1.25320338,160.31,160.21,1.58805257]
[1721168296559,1.25320338,160.31,160.23,10.0]
[1721168296761,1.25320338,160.31,160.24,1.58777864]
[1721168297263,1.25320338,160.34,160.24,0.34]
[1721168297439,1.25320338,160.34,160.24,1.58781306]
[1721168297869,1.25320338,160.34,160.25,10.0]
[1721168298045,1.25320338,160.33,160.26,1.58757421]
[1721168298248,1.25320338,160.35,160.27,1.24757211]
[1721168298465,1.25320338,160.35,160.28,0.17]
[1721168298666,1.25320338,160.35,160.28,1.58756922]
[1721168298854,1.25320338,160.35,160.28,1.41756922]
[1721168299056,1.25320338,160.35,160.29,0.17]
[1721168299646,7.48960338,160.35,160.29,0.17]
[1721168299842,1.25320338,160.35,160.29,0.17]
[1721168302062,6.2352,160.38,160.29,1.41756191]
[1721168302275,1.25320338,160.37,160.3,0.17]
[1721168302566,7.48880338,160.37,160.3,0.17]
[1721168302975,1.25320338,160.37,160.3,0.17]
[1721168303467,7.48880338,160.37,160.3,0.17]
[1721168303651,1.25320338,160.37,160.3,0.17]
[1721168304355,7.48880338,160.37,160.3,0.17]
[1721168304554,6.2367,160.34,160.22,42.0563]
[1721168304864,1.25320338,160.33,160.24,10.0]
[1721168305177,18.74,160.37,160.23,30.0]
[1721168305377,1.25320338,160.36,160.22,32.0563]
[1721168305670,1.25320338,160.35,160.23,10.0]
[1721168305851,1.25320338,160.35,160.22,32.0563]
[1721168305852,6.2372,160.33,160.22,22.0563]
[1721168306170,6.2384,160.3,160.22,22.0563]
[1721168306365,1.25320338,160.29,160.22,22.0563]
[1721168307178,1.25320338,160.31,160.22,22.0563]
[1721168307858,1.25320338,160.3,160.23,0.34]
[1721168308058,6.2374,160.33,160.23,0.34]
[1721168308266,1.25320338,160.32,160.23,0.34]
[1721168308473,1.25320338,160.32,160.23,10.34]
[1721168309159,20.0,160.33,160.25,10.0]
[1721168309160,1.25320338,160.33,160.25,10.0]
[1721168309481,1.25320338,160.32,160.26,0.34]
[1721168309854,6.2379,160.31,160.22,22.0563]
[1721168310084,1.25320338,160.3,160.22,22.0563]
[1721168310270,1.25320338,160.29,160.22,22.0563]
[1721168310580,39.99320338,160.34,160.22,22.0563]
[1721168311177,6.2371,160.33,160.22,22.0563]
[1721168311377,1.25320338,160.32,160.23,0.34]
[1721168312649,1.25320338,160.32,160.22,22.0563]
[1721168314076,6.2394,160.28,160.18,28.92421168]
[1721168314252,1.25320338,160.27,160.18,28.92421168]
[1721168314452,1.25320338,160.26,160.18,28.92421168]
[1721168314875,1.25320338,160.25,160.18,28.92421168]
[1721168315155,1.25320338,160.29,160.18,28.92421168]
[1721168315352,1.25320338,160.29,160.19,0.34]
[1721168315756,18.74,160.28,160.18,28.92421168]
[1721168315953,6.2406,160.25,160.18,6.51781168]
[1721168316174,1.25320338,160.24,160.15,22.3167]
[1721168316357,6.2406,160.25,160.17,6.51812647]
[1721168316358,1.25320338,160.23,160.17,6.51812647]
[1721168317652,1.25320338,160.22,160.17,6.51812647]
[1721168317853,7.49340338,160.25,160.17,6.51812647]
[1721168318081,1.25320338,160.25,160.17,6.51812647]
[1721168318457,7.49350338,160.25,160.18,0.34]
[1721168318881,1.25320338,160.24,160.18,0.34]
[1721168319058,1.25320338,160.23,160.18,0.34]
[1721168319260,27.49270338,160.27,160.18,0.34]
[1721168319461,1.25320338,160.26,160.18,0.34]
[1721168319878,7.49310338,160.26,160.18,0.34]
[1721168320262,31.22320338,160.26,160.18,0.34]
[1721168320487,29.97,160.23,160.17,6.51812647]
[1721168320661,29.97,160.23,160.11,6.5143]
[1721168320662,6.2422,160.2,160.11,6.5143]
[1721168320987,1.25320338,160.19,160.12,6.51848681]
[1721168321459,7.49590338,160.19,160.12,6.51848681]
[1721168321659,1.25320338,160.19,160.12,6.51848681]
[1721168321882,29.97,160.17,160.09,10.0]
[1721168322185,1.25320338,160.16,160.09,16.51375297]
[1721168322687,1.25320338,160.16,160.1,1.24896904]
[1721168322983,1.25320338,160.16,160.11,1.24896708]
[1721168323181,29.97,160.2,160.11,1.24896708]
[1721168323370,7.49610338,160.19,160.09,16.51375297]
[1721168323571,7.49610338,160.19,160.1,0.17]
[1721168323770,7.49610338,160.19,160.1,1.58893401]
[1721168324164,1.25320338,160.19,160.1,1.58893401]
[1721168324893,7.49580338,160.19,160.1,1.58893401]
[1721168325073,1.25320338,160.19,160.1,1.58893401]
[1721168325584,1.25320338,160.21,160.13,10.0]
[1721168325790,1.25320338,160.21,160.14,1.58854422]
[1721168326087,1.25320338,160.21,160.15,1.24854059]
[1721168326297,1.25320338,160.2,160.16,0.34]
[1721168326457,7.49460338,160.22,160.16,0.34]
[1721168326856,1.25320338,160.22,160.16,0.34]
[1721168327476,1.25320338,160.22,160.15,22.8545]
[1721168327687,1.25320338,160.22,160.17,0.17]
[1721168327889,6.2413,160.23,160.15,22.8545]
[1721168328067,1.25320338,160.22,160.15,22.8545]
[1721168328266,7.49470338,160.22,160.15,22.8545]
[1721168328974,1.25320338,160.22,160.15,22.8545]
[1721168329370,1.25320338,160.22,160.16,1.24861125]
[1721168329689,1.25320338,160.22,160.17,0.34]
[1721168330186,1.25320338,160.21,160.16,1.5886095]
[1721168330393,1.25320338,160.2,160.16,1.5886095]
[1721168330580,6.2412,160.23,160.16,0.34]
[1721168330881,1.25320338,160.22,160.16,0.34]
[1721168331270,37.46470338,160.22,160.11,33.82693947]
[1721168331580,6.2423,160.2,160.11,22.5784]
[1721168331882,1.25320338,160.19,160.11,22.5784]
[1721168332284,37.46590338,160.19,160.11,16.5614]
[1721168332480,37.46590338,160.19,160.09,6.51625703]
[1721168332961,31.22320338,160.19,160.09,6.51625703]
[1721168333292,7.49580338,160.19,160.09,6.51625703]
[1721168333687,1.25320338,160.19,160.09,7.76522581]
[1721168334068,1.25320338,160.19,160.09,6.51625703]
[1721168334288,1.25320338,160.19,160.1,1.24896887]
[1721168334486,1.25320338,160.19,160.11,1.418967]
[1721168334692,7.49580338,160.19,160.12,0.17]
[1721168334893,7.49580338,160.19,160.11,0.17]
[1721168335185,7.49580338,160.19,160.1,0.34]
[1721168335785,1.25320338,160.19,160.1,11.58896728]
[1721168336473,1.25320338,160.19,160.1,0.34]
[1721168336892,1.25320338,160.19,160.1,1.58564168]
[1721168338181,7.49590338,160.19,160.1,0.34]
[1721168338495,6.243,160.18,160.1,0.34]
[1721168338674,1.25320338,160.17,160.1,0.34]
[1721168340372,1.25320338,160.17,160.09,6.51625703]
[1721168340592,31.22320338,160.17,160.09,6.51625703]
[1721168340776,36.2145,160.14,160.09,6.51625703]
[1721168341094,45.222,160.11,160.01,203.06029738]
[1721168341297,1.25320338,160.1,160.04,6.51834772]
[1721168341502,7.49930338,160.1,159.98,10.0]
[1721168341672,1.25320338,160.1,160.0,10.0]
[1721168341867,1.25320338,160.1,160.04,6.51845427]
[1721168342067,7.49740338,160.15,160.05,1.24950906]
[1721168342290,1.25320338,160.14,160.05,11.24950906]
[1721168342503,1.25320338,160.14,160.05,10.0]
[1721168342999,1.25320338,160.14,160.06,1.24916722]
[1721168343206,1.25320338,160.14,160.04,29.49878149]
[1721168343494,7.49780338,160.14,160.05,0.34]
[1721168343698,1.25320338,160.14,160.05,10.34]
[1721168344067,1.25320338,160.14,160.06,1.24916204]
[1721168344275,1.25320338,160.15,160.07,10.34]
[1721168344490,1.25320338,160.15,160.08,1.248998]
[1721168344803,1.25320338,160.17,160.09,0.34]
[1721168344991,1.25320338,160.17,160.1,1.24892403]
[1721168345174,1.25320338,160.17,160.11,1.58890989]
[1721168345379,6.1663,160.2,160.12,0.17]
[1721168345704,1.25320338,160.2,160.13,1.24870274]
[1721168345898,1.25320338,160.2,160.14,0.34]
[1721168346069,1.25320338,160.2,160.15,0.17]
[1721168346269,1.25320338,160.2,160.15,1.41865727]
[1721168346474,1.25320338,160.23,160.16,0.17]
[1721168346891,7.49420338,160.23,160.16,0.17]
[1721168347402,1.25320338,160.23,160.16,0.17]
[1721168347700,6.2414,160.22,160.16,0.17]
[1721168347996,1.25320338,160.21,160.16,0.17]
[1721168348197,1.25320338,160.2,160.16,0.17]
[1721168349779,1.25320338,160.19,160.16,0.17]
[1721168350683,1.25320338,160.2,160.16,0.17]
[1721168351105,1.25320338,160.2,160.15,0.17]
[1721168351291,1.25320338,160.2,160.08,22.7291]
[1721168351494,36.2128,160.19,160.09,0.17]
[1721168351694,7.49620338,160.18,160.08,22.7291]
[1721168352006,1.25320338,160.17,160.08,22.7291]
[1721168352891,1.25320338,160.17,160.09,0.17]
[1721168353084,1.25320338,160.17,160.09,0.34]
[1721168354878,1.25320338,160.17,160.09,1.58895534]
[1721168355381,1.25320338,160.18,160.1,1.24895688]
[1721168355596,1.25320338,160.17,160.11,1.41883181]
[1721168355779,1.25320338,160.2,160.12,0.17]
[1721168355979,1.25320338,160.2,160.14,0.17]
[1721168356586,7.49550338,160.2,160.14,0.17]
[1721168356900,1.25320338,160.2,160.14,0.17]
[1721168357104,1.25320338,160.2,160.12,0.17]
[1721168357407,7.49550338,160.2,160.12,0.34]
[1721168357789,7.49550338,160.2,160.11,0.34]
[1721168358108,1.25320338,160.2,160.11,0.34]
[1721168358499,1.25320338,160.2,160.12,1.24878622]
[1721168358809,1.25320338,160.21,160.13,0.34]
[1721168359012,1.25320338,160.22,160.14,1.4186378]
[1721168359198,1.25320338,160.22,160.15,1.4185498]
[1721168359403,1.25320338,160.24,160.15,1.2485498]
[1721168359604,1.25320338,160.23,160.16,0.34]
[1721168359791,1.25320338,160.23,160.16,1.5884425]
[1721168360504,1.25320338,160.24,160.16,1.5884425]
[1721168360802,1.25320338,160.23,160.16,1.5884425]
[1721168361586,1.25320338,160.22,160.16,1.5884425]
[1721168361784,1.25320338,160.24,160.16,1.5884425]
[1721168361986,1.25320338,160.23,160.16,1.5884425]
[1721168362898,1.25320338,160.22,160.16,1.5884425]
[1721168363216,1.25320338,160.24,160.16,1.5884425]
[1721168363512,1.25320338,160.23,160.16,1.5884425]
[1721168364210,1.25320338,160.23,160.16,23.4016425]
[1721168364411,1.25320338,160.25,160.16,23.4016425]
[1721168365496,6.2406,160.24,160.16,23.4016425]
[1721168365702,1.25320338,160.23,160.16,23.4016425]
[1721168365902,6.2403,160.25,160.16,23.4016425]
[1721168366215,1.25320338,160.24,160.16,23.4016425]
[1721168366508,1.25320338,160.23,160.16,23.4016425]
[1721168366711,1.25320338,160.25,160.16,23.4016425]
[1721168367087,1.25320338,160.25,160.17,10.0]
[1721168367289,1.25320338,160.27,160.18,1.58825411]
[1721168367490,6.2389,160.29,160.18,1.58825411]
[1721168367805,1.25320338,160.28,160.19,10.0]
[1721168368118,1.25320338,160.28,160.2,1.5879787]
[1721168368303,1.25320338,160.28,160.21,1.24800353]
[1721168368505,1.25320338,160.28,160.22,0.17]
[1721168368690,7.49160338,160.3,160.23,1.24801014]
[1721168369009,1.25320338,160.29,160.24,1.58800753]
[1721168369219,1.25320338,160.31,160.24,1.58800753]
[1721168369915,1.25320338,160.31,160.24,16.80540753]
[1721168370217,1.25320338,160.32,160.24,16.80540753]
[1721168371205,1.25320338,160.31,160.24,16.80540753]
[1721168371524,1.25320338,160.33,160.24,16.80540753]
[1721168371817,1.25320338,160.32,160.24,16.80540753]
[1721168372325,1.25320338,160.33,160.26,10.0]
[1721168372489,1.25320338,160.32,160.27,0.34]
[1721168372689,7.48990338,160.34,160.27,0.17]
[1721168372913,7.48990338,160.34,160.27,1.41763962]
[1721168373117,1.25320338,160.34,160.28,0.17]
[1721168373621,1.25320338,160.34,160.28,1.41760333]
[1721168373818,21.5766,160.36,160.29,0.17]
[1721168373819,1.25320338,160.33,160.29,0.17]
[1721168373995,1.25320338,160.35,160.29,0.17]
[1721168376297,1.25320338,160.35,160.29,1.41758473]
[1721168376497,1.25320338,160.37,160.29,0.17]
[1721168376999,1.25320338,160.37,160.29,1.41746183]
[1721168377196,1.25320338,160.37,160.3,0.17]
[1721168377528,7.48880338,160.37,160.3,0.17]
[1721168381117,1.25320338,160.37,160.3,0.17]
[1721168381824,7.48880338,160.37,160.3,0.17]
[1721168383220,6.2363,160.35,160.24,15.2174]
[1721168383523,1.25320338,160.34,160.24,15.2174]
[1721168384022,6.2372,160.33,160.24,15.2174]
[1721168384232,1.25320338,160.32,160.24,15.2174]
[1721168384737,7.49070338,160.32,160.24,15.2174]
[1721168384903,6.2383,160.3,160.24,15.2174]
[1721168385101,1.25320338,160.29,160.23,6.1097]
[1721168385834,1.25320338,160.29,160.2,219.61279738]
[1721168386035,1.25320338,160.29,160.19,12.75642753]
[1721168386036,49.96320338,160.29,160.19,12.75642753]
[1721168386207,31.22320338,160.29,160.19,6.51692753]
[1721168386528,36.2099,160.26,160.15,6.2395]
[1721168386727,1.25320338,160.25,160.15,22.76034845]
[1721168386910,1.25320338,160.25,160.15,12.76034845]
[1721168388036,1.25320338,160.25,160.16,0.17]
[1721168388211,1.25320338,160.25,160.16,0.34]
[1721168388530,1.25320338,160.25,160.15,12.76034845]
[1721168391010,6.243,160.18,160.09,6.52421396]
[1721168391212,1.25320338,160.17,160.09,6.52421396]
[1721168393136,1.25320338,160.17,160.09,16.52421396]
[1721168393312,1.25320338,160.16,160.1,0.34]
[1721168393515,1.25320338,160.16,160.1,1.58902942]
[1721168393709,1.25320338,160.18,160.11,1.24891227]
[1721168394021,1.25320338,160.17,160.12,0.34]
[1721168394222,1.25320338,160.2,160.12,0.34]
[1721168394435,21.25320338,160.2,160.12,0.34]
[1721168395322,1.25320338,160.2,160.12,0.34]
[1721168396240,1.25320338,160.2,160.11,0.34]
[1721168396438,7.49550338,160.2,160.11,0.34]
[1721168396611,1.25320338,160.19,160.11,0.34]
[1721168397043,1.25320338,160.19,160.12,0.17]
[1721168397247,1.25320338,160.19,160.1,1.58880734]
[1721168397440,1.25320338,160.19,160.11,10.0]
[1721168397740,1.25320338,160.21,160.13,16.4258]
[1721168397931,1.25320338,160.2,160.14,0.34]
[1721168398130,1.25320338,160.22,160.14,1.58860501]
[1721168400422,1.25320338,160.24,160.16,25.3328]
[1721168400740,29.97,160.26,160.17,0.34]
[1721168400741,1.25320338,160.26,160.17,0.34]
[1721168401120,6.2406,160.24,160.17,0.34]
[1721168401346,1.25320338,160.23,160.17,0.34]
[1721168402045,6.2415,160.22,160.17,0.17]
[1721168402241,1.25320338,160.21,160.13,7.67060423]
[1721168402544,1.25320338,160.23,160.14,0.34]
[1721168402844,1.25320338,160.22,160.14,0.34]
[1721168403029,1.25320338,160.22,160.14,1.58868126]
[1721168403833,1.25320338,160.21,160.14,1.58868126]
[1721168404019,1.25320338,160.2,160.14,1.58868126]
[1721168404217,29.97,160.23,160.14,0.34]
[1721168404454,1.25320338,160.22,160.14,1.58873559]
[1721168405628,1.25320338,160.22,160.14,11.58873559]
[1721168405830,1.25320338,160.24,160.14,11.58873559]
[1721168406043,1.25320338,160.23,160.14,11.58873559]
[1721168406437,1.25320338,160.23,160.14,10.34]
[1721168406939,1.25320338,160.22,160.14,10.34]
[1721168407451,1.25320338,160.24,160.14,10.34]
[1721168407757,1.25320338,160.23,160.14,10.34]
[1721168409848,1.25320338,160.23,160.16,10.0]
[1721168410039,1.25320338,160.27,160.17,1.58834482]
[1721168410240,1.25320338,160.26,160.18,1.24834385]
[1721168410455,1.25320338,160.26,160.19,0.34]
[1721168411353,1.25320338,160.26,160.19,1.58830637]
[1721168411860,1.25320338,160.27,160.2,15.1174]
[1721168412028,1.25320338,160.26,160.21,1.58814904]
[1721168412230,1.25320338,160.28,160.21,1.58814904]
[1721168413032,1.25320338,160.3,160.21,11.58814904]
[1721168413232,1.25320338,160.29,160.21,0.34]
[1721168413948,6.2393,160.28,160.21,0.34]
[1721168414154,1.25320338,160.27,160.21,0.34]
[1721168414443,1.25320338,160.26,160.21,0.34]
[1721168416360,1.25320338,160.25,160.21,0.34]
[1721168416948,1.25320338,160.28,160.21,1.58828074]
[1721168417426,1.25320338,160.28,160.21,0.34]
[1721168417627,36.2089,160.29,160.21,0.34]
[1721168418552,1.25320338,160.28,160.21,0.34]
[1721168419358,1.25320338,160.28,160.21,1.58822512]
[1721168419535,1.25320338,160.28,160.22,1.24822536]
[1721168419739,21.25320338,160.31,160.23,0.17]
[1721168420049,21.25320338,160.31,160.21,0.34]
[1721168420249,1.25320338,160.31,160.21,0.34]
[1721168420455,1.25320338,160.31,160.23,6.2575]
[1721168420654,1.25320338,160.3,160.24,1.58782664]
[1721168420966,7.49030338,160.33,160.24,1.58782664]
[1721168421257,7.49070338,160.32,160.24,1.58782664]
[1721168421670,1.25320338,160.32,160.24,1.58782664]
[1721168422372,1.25320338,160.31,160.24,1.58782664]
[1721168423947,1.25320338,160.31,160.24,11.58782664]
[1721168424157,6.2364,160.35,160.24,10.34]
[1721168424850,6.2368,160.34,160.24,0.34]
[1721168425439,6.2368,160.34,160.24,10.34]
[1721168425641,6.2364,160.35,160.24,10.34]
[1721168426256,16.1615,160.36,160.24,0.34]
[1721168426470,20.0,160.35,160.24,0.34]
[1721168426673,1.25320338,160.34,160.24,0.34]
[1721168426976,6.2372,160.33,160.24,0.34]
[1721168427180,1.25320338,160.32,160.24,0.34]
[1721168428373,1.25320338,160.31,160.24,1.58338301]
[1721168428679,1.25320338,160.31,160.24,0.34]
[1721168429784,38.74,160.35,160.24,11.58761251]
[1721168429785,1.25320338,160.33,160.24,11.58761251]
[1721168430084,1.25320338,160.32,160.24,0.34]
[1721168430265,1.25320338,160.32,160.29,14.97]
[1721168431188,16.22320338,160.34,160.29,14.97]
[1721168431601,1.25320338,160.34,160.29,14.97]
[1721168432276,1.25320338,160.34,160.3,14.97]
[1721168432479,1.25320338,160.34,160.28,0.34]
[1721168432659,1.25320338,160.34,160.31,14.97]
[1721168433555,1.25320338,160.34,160.32,14.97]
[1721168433751,1.25320338,160.38,160.33,14.97]
[1721168435696,21.2049,160.39,160.33,14.97]
[1721168436371,34.3867,160.4,160.33,14.97]
[1721168436372,21.2052,160.38,160.33,14.97]
[1721168436557,6.2352,160.38,160.31,0.17]
[1721168436766,6.2357,160.37,160.31,0.17]
[1721168437072,6.2357,160.37,160.32,14.97]
[1721168437384,21.2052,160.38,160.33,14.97]
[1721168438184,1.25320338,160.37,160.33,14.97]
[1721168438694,14.97,160.35,160.27,15.0273]
[1721168438869,1.25320338,160.34,160.22,16.1463]
[1721168439070,14.97,160.3,160.24,14.97]
[1721168439290,16.22320338,160.29,160.24,14.97]
[1721168439660,1.25320338,160.29,160.25,14.97]
[1721168440365,1.25320338,160.3,160.26,0.17]
[1721168440573,1.25320338,160.29,160.26,0.34]
[1721168440979,1.25320338,160.32,160.26,0.34]
[1721168441369,7.49070338,160.32,160.26,0.34]
[1721168442701,6.238,160.31,160.22,16.1463]
[1721168442887,19.99320338,160.3,160.21,6.51935844]
[1721168443095,7.49190338,160.29,160.21,6.51935844]
[1721168443894,1.25320338,160.29,160.21,6.51935844]
[1721168444270,7.49180338,160.29,160.21,6.51935844]
[1721168444894,1.25320338,160.29,160.22,0.17]
[1721168445067,1.25320338,160.29,160.22,0.34]
[1721168446094,1.25320338,160.29,160.22,1.58811017]
[1721168446994,1.25320338,160.3,160.22,1.58811017]
[1721168447288,1.25320338,160.29,160.22,1.58811017]
[1721168447485,1.25320338,160.32,160.22,1.58811017]
[1721168448392,1.25320338,160.32,160.23,10.0]
[1721168448596,1.25320338,160.32,160.24,0.34]
[1721168450579,1.25320338,160.32,160.24,1.58779731]
[1721168451067,1.25320338,160.35,160.24,1.58779731]
[1721168451905,6.237,160.34,160.24,1.58779731]
[1721168452083,1.25320338,160.33,160.24,1.58779731]
[1721168452282,1.25320338,160.32,160.24,1.58779731]
[1721168453308,1.25320338,160.31,160.24,1.58779731]
[1721168453469,1.25320338,160.33,160.24,1.58779731]
[1721168453674,7.48960338,160.35,160.25,10.0]
[1721168453899,7.48960338,160.35,160.26,0.34]
[1721168454395,1.25320338,160.35,160.26,0.34]
[1721168455198,7.48950338,160.35,160.27,1.24765362]
[1721168455393,7.48950338,160.35,160.28,0.34]
[1721168455593,7.48950338,160.35,160.29,0.17]
[1721168455803,7.48950338,160.35,160.29,1.41759078]
[1721168455804,1.25320338,160.35,160.29,1.41759078]
[1721168456006,1.25320338,160.35,160.3,0.17]
[1721168460999,1.25320338,160.35,160.22,36.45929852]
[1721168461198,39.99320338,160.35,160.23,30.0]
[1721168461510,6.2381,160.31,160.22,36.45929852]
[1721168461698,1.25320338,160.3,160.22,6.51929852]
[1721168461893,6.2381,160.31,160.22,6.51929852]
[1721168461894,1.25320338,160.29,160.22,6.51929852]
[1721168462615,1.25320338,160.29,160.23,0.34]
[1721168462798,7.79960338,160.29,160.23,0.34]
[1721168463199,7.79960338,160.29,160.22,6.51929852]
[1721168463398,1.25320338,160.28,160.23,1.24742073]
[1721168463603,1.25320338,160.28,160.24,1.24798474]
[1721168463907,1.25320338,160.28,160.22,6.51929852]
[1721168464107,6.5464,160.29,160.23,1.24355997]